bitfinex-derivatives/quotes_BTCF0:USTF0_20250528
["timestamp","ask_amount","ask_price","bid_price","bid_amount"]
[1748434770485,1.24946448,109010.0,109000.0,0.23151401]
[1748434770674,1.24950448,109010.0,109000.0,0.23151401]
[1748434770880,1.1282855,109010.0,109000.0,0.23151401]
[1748434773591,1.24950448,109010.0,109000.0,0.23151401]
[1748434774885,1.28977273,109010.0,109000.0,0.23151401]
[1748434777181,1.65057273,109010.0,109000.0,0.23151401]
[1748434777788,1.61030448,109010.0,109000.0,0.23151401]
[1748434777987,1.65056318,109010.0,109000.0,0.23151401]
[1748434779291,0.92896318,109010.0,109000.0,0.23151401]
[1748434779498,1.65056318,109010.0,109000.0,0.23151401]
[1748434781197,1.61030448,109010.0,109000.0,0.23151401]
[1748434781382,1.65055497,109010.0,109000.0,0.23151401]
[1748434781785,1.52933599,109010.0,109000.0,0.23151401]
[1748434781995,1.65055497,109010.0,109000.0,0.23151401]
[1748434782388,1.65055227,109010.0,109000.0,0.20582921]
[1748434782990,1.65047227,109010.0,109000.0,0.20582921]
[1748434784490,1.65047227,109010.0,109000.0,0.20670776]
[1748434784700,1.65047227,109010.0,109000.0,0.20822323]
[1748434786903,1.6504599,109010.0,109000.0,0.20822323]
[1748434787599,1.1330599,109010.0,109000.0,0.20822323]
[1748434787794,1.6504999,109010.0,109000.0,0.20822323]
[1748434788590,1.1330599,109010.0,109000.0,0.20822323]
[1748434788894,1.6504999,109010.0,109000.0,0.20822323]
[1748434789797,1.6504999,109010.0,109000.0,0.20800755]
[1748434790004,1.1330599,109010.0,109000.0,0.20800755]
[1748434790185,1.6504999,109010.0,109000.0,0.20800755]
[1748434790793,0.9288999,109010.0,109000.0,0.20800755]
[1748434790995,1.6504999,109010.0,109000.0,0.20800755]
[1748434791402,1.65051529,109010.0,109000.0,0.23850755]
[1748434792111,1.13307529,109010.0,109000.0,0.23850755]
[1748434792286,1.65051529,109010.0,109000.0,0.23850755]
[1748434792794,1.13307529,109010.0,109000.0,0.23850755]
[1748434792999,1.65051529,109010.0,109000.0,0.23850755]
[1748434793494,1.69336151,109010.0,109000.0,0.23850755]
[1748434795100,1.69336151,109010.0,109000.0,0.27070755]
[1748434795496,1.75048871,109010.0,109000.0,0.27070755]
[1748434795804,1.75071222,109010.0,109000.0,0.27070755]
[1748434799003,1.75071222,109010.0,109000.0,0.11632177]
[1748434799204,1.75071222,109010.0,109000.0,0.34509402]
[1748434802109,1.75069081,109010.0,109000.0,0.34509402]
[1748434803210,1.75069081,109010.0,109000.0,0.16090039]
[1748434804798,1.75071944,109010.0,109000.0,0.16090039]
[1748434806394,1.75071944,109010.0,109000.0,0.19200039]
[1748434806595,1.75071944,109010.0,109000.0,0.16090039]
[1748434807199,1.75071944,109010.0,109000.0,0.19200039]
[1748434808208,1.62952187,109010.0,109000.0,0.19200039]
[1748434808605,1.75071944,109010.0,109000.0,0.19200039]
[1748434809007,1.75071944,109010.0,109000.0,0.22410039]
[1748434810107,1.62952187,109010.0,109000.0,0.22410039]
[1748434810413,1.75071944,109010.0,109000.0,0.22410039]
[1748434810713,1.17670049,109010.0,109000.0,0.34529796]
[1748434810900,1.71785806,109010.0,109000.0,0.34529796]
[1748434813015,1.74795806,109010.0,109000.0,0.34529796]
[1748434813514,1.74795802,109010.0,109000.0,0.34529796]
[1748434813708,1.74795802,109010.0,109000.0,0.22410039]
[1748434813911,1.7479368,109010.0,109000.0,0.22410039]
[1748434815118,1.7478968,109010.0,109000.0,0.22410039]
[1748434815517,1.6907696,109010.0,109000.0,0.22410039]
[1748434815719,1.7478968,109010.0,109000.0,0.22410039]
[1748434816620,1.2003968,109010.0,109000.0,0.29903336]
[1748434816823,1.17670045,109010.0,109000.0,0.29903336]
[1748434817019,1.53949325,109010.0,109000.0,0.29903336]
[1748434817319,0.99037325,109010.0,109000.0,0.42020971]
[1748434817525,1.04498679,109010.0,109000.0,0.7013427]
[1748434817723,1.04498679,109010.0,109000.0,0.65538104]
[1748434817724,0.58670679,109010.0,109000.0,0.65538104]
[1748434818021,0.5462055,109010.0,109000.0,0.70132579]
[1748434818217,0.5463255,109010.0,109000.0,0.70132579]
[1748434820313,0.5463255,109010.0,109000.0,0.58014944]
[1748434820509,0.5463255,109010.0,109000.0,0.70132579]
[1748434822130,0.5463255,109010.0,109000.0,0.70124722]
[1748434823414,0.5463255,109010.0,109000.0,0.51298267]
[1748434823615,0.5463255,109010.0,109000.0,0.75298267]
[1748434824921,0.5463255,109010.0,109000.0,0.70711649]
[1748434827427,0.5776255,109010.0,109000.0,0.70711649]
[1748434829638,0.5776255,109010.0,109000.0,0.75310701]
[1748434830925,0.5776255,109010.0,109000.0,0.70711649]
[1748434831131,0.5776255,109010.0,109000.0,0.75310231]
[1748434833633,0.5776255,109010.0,109000.0,0.70711649]
[1748434834032,0.5776255,109010.0,109000.0,0.8282476]
[1748434837631,0.6089255,109010.0,109000.0,0.8282476]
[1748434839527,0.6089255,109010.0,109000.0,0.6448259]
[1748434839931,0.6089255,109010.0,109000.0,0.8282476]
[1748434840532,0.6089255,109010.0,109000.0,0.87398441]
[1748434840923,0.00212,109010.0,109000.0,1.20537068]
[1748434841137,0.00212,109010.0,109000.0,1.5307876]
[1748434841348,0.1855249,109010.0,109000.0,1.38853028]
[1748434841635,0.1854049,109010.0,109000.0,3.19553176]
[1748434841847,0.1855249,109010.0,109000.0,3.31668549]
[1748434842025,0.1855249,109010.0,109000.0,2.88853028]
[1748434842226,0.1855249,109010.0,109000.0,2.63853028]
[1748434842427,0.1855249,109010.0,109000.0,2.88083774]
[1748434842428,0.2177249,109010.0,109000.0,2.88083774]
[1748434842634,0.2177249,109010.0,109000.0,2.7032243]
[1748434842928,0.2177249,109010.0,109000.0,3.18636111]
[1748434843135,0.2177249,109010.0,109000.0,3.42866857]
[1748434843832,0.2177249,109010.0,109000.0,3.18940111]
[1748434844041,0.2177249,109010.0,109000.0,3.43170857]
[1748434844343,0.2177249,109010.0,109000.0,3.18940111]
[1748434844547,0.2177249,109010.0,109000.0,3.43170857]
[1748434845341,0.2177249,109010.0,109000.0,3.33996857]
[1748434845735,0.2177249,109010.0,109000.0,3.09766111]
[1748434846337,0.2177249,109010.0,109000.0,3.33996857]
[1748434847340,0.03232,109010.0,109000.0,3.4611223]
[1748434847529,0.00012,109010.0,109000.0,3.09766111]
[1748434847839,0.21492748,109020.0,109010.0,0.1834049]
[1748434848030,0.21492748,109020.0,109010.0,1.23821417]
[1748434848338,0.21492748,109020.0,109010.0,1.11706044]
[1748434848528,0.24652748,109020.0,109010.0,1.0664318]
[1748434849230,0.24852748,109020.0,109010.0,1.0664318]
[1748434849737,0.24852748,109020.0,109010.0,0.94527807]
[1748434849937,0.24852748,109020.0,109010.0,1.0664318]
[1748434850432,0.60932748,109020.0,109010.0,0.94527807]
[1748434850633,0.60932748,109020.0,109010.0,1.5142318]
[1748434850835,0.64192748,109020.0,109010.0,1.5142318]
[1748434851730,0.28112748,109020.0,109010.0,1.5142318]
[1748434852231,0.64192748,109020.0,109010.0,1.46849499]
[1748434852635,0.64192748,109020.0,109010.0,1.02069499]
[1748434852841,0.64192748,109020.0,109010.0,1.46801499]
[1748434853934,0.06513818,109020.0,109010.0,1.46801499]
[1748434854134,0.24852628,109020.0,109010.0,1.94996872]
[1748434854436,0.24864628,109020.0,109010.0,1.82881499]
[1748434854837,0.24864628,109020.0,109010.0,1.70766126]
[1748434855043,0.24864628,109020.0,109010.0,1.82881499]
[1748434855241,0.24864628,109020.0,109010.0,1.70766126]
[1748434856038,0.24864628,109020.0,109010.0,1.82881499]
[1748434856229,0.24864628,109020.0,109010.0,1.70766126]
[1748434856433,0.24864628,109020.0,109010.0,1.94996872]
[1748434856630,0.06525818,109020.0,109010.0,1.94996872]
[1748434856834,0.03353818,109020.0,109010.0,1.99494873]
[1748434857035,0.21704638,109020.0,109010.0,1.99494873]
[1748434857343,0.21692638,109020.0,109010.0,1.96364873]
[1748434857546,0.21704638,109020.0,109010.0,1.96364873]
[1748434858348,0.21704638,109020.0,109010.0,2.02834275]
[1748434859549,0.03365818,109020.0,109010.0,3.52834275]
[1748434859947,0.21704638,109020.0,109010.0,3.52834275]
[1748434860341,0.0916823,109040.0,109030.0,0.1833714]
[1748434860539,0.2750467,109040.0,109030.0,0.6194581]
[1748434860846,0.3075467,109040.0,109030.0,0.6816581]
[1748434861049,0.3076667,109040.0,109030.0,0.56050437]
[1748434861351,0.3076667,109040.0,109030.0,0.6816581]
[1748434861543,0.3383667,109040.0,109030.0,0.6816581]
[1748434861948,0.3383667,109040.0,109030.0,0.68160262]
[1748434862244,0.3403667,109040.0,109030.0,0.56050437]
[1748434862441,0.3403667,109040.0,109030.0,0.68160262]
[1748434864256,0.3403667,109040.0,109030.0,0.72653747]
[1748434865159,0.7011667,109040.0,109030.0,0.52840437]
[1748434865455,0.7339667,109040.0,109030.0,0.64950262]
[1748434865655,0.7339667,109040.0,109030.0,0.69443747]
[1748434866550,0.7339667,109040.0,109030.0,0.72643747]
[1748434866950,0.7011667,109040.0,109030.0,0.72643747]
[1748434867160,0.7011667,109040.0,109030.0,0.60533922]
[1748434867358,0.7010467,109040.0,109030.0,0.75843747]
[1748434867563,0.7011667,109040.0,109030.0,0.75843747]
[1748434869265,0.7011667,109040.0,109030.0,0.71350262]
[1748434870271,0.7011667,109040.0,109030.0,0.59240437]
[1748434870467,0.7010467,109040.0,109030.0,0.59240437]
[1748434870768,0.7010467,109040.0,109030.0,0.71350262]
[1748434870769,0.7006667,109040.0,109030.0,0.71350262]
[1748434871463,0.7006667,109040.0,109030.0,0.63856965]
[1748434871669,0.7006667,109040.0,109030.0,1.16806262]
[1748434872572,0.7006667,109040.0,109030.0,0.71350262]
[1748434872869,0.7006667,109040.0,109030.0,0.31493297]
[1748434873059,0.7320667,109040.0,109030.0,0.31493297]
[1748434873263,0.7320667,109040.0,109030.0,0.43603122]
[1748434873658,0.7320667,109040.0,109030.0,0.46633122]
[1748434874072,0.7320667,109040.0,109030.0,0.64970262]
[1748434874973,0.7320667,109040.0,109030.0,0.68020262]
[1748434875170,0.7320667,109040.0,109030.0,0.60526965]
[1748434875375,0.7320667,109040.0,109030.0,0.68020262]
[1748434876272,0.7320667,109040.0,109030.0,0.71210262]
[1748434876674,0.7320667,109040.0,109030.0,0.52873122]
[1748434877566,0.7320667,109040.0,109030.0,0.58074834]
[1748434877767,0.7320667,109040.0,109030.0,0.62603856]
[1748434878279,0.7320667,109040.0,109030.0,0.52873122]
[1748434880079,0.7320667,109040.0,109030.0,0.40763297]
[1748434880374,0.7320667,109040.0,109030.0,0.52873122]
[1748434881168,0.7320667,109040.0,109030.0,0.71210262]
[1748434881573,0.7320667,109040.0,109030.0,0.52873122]
[1748434881777,0.7320667,109040.0,109030.0,0.49823122]
[1748434881974,0.7320667,109040.0,109030.0,0.49824699]
[1748434882163,0.7320667,109040.0,109030.0,0.42915009]
[1748434882370,1.33509474,109040.0,109030.0,0.24]
[1748434882674,1.0928667,109040.0,109030.0,0.2055895]
[1748434882878,1.37613569,109040.0,109030.0,0.1400843]
[1748434883181,1.41903176,109040.0,109030.0,0.1400843]
[1748434883366,1.37613569,109040.0,109030.0,0.1400843]
[1748434883869,1.25506725,109040.0,109030.0,0.1400843]
[1748434885568,1.13390765,109040.0,109030.0,0.1400843]
[1748434885769,1.25506725,109040.0,109030.0,0.1400843]
[1748434887580,1.58562765,109040.0,109030.0,0.1400843]
[1748434888078,1.58550765,109040.0,109030.0,0.1400843]
[1748434888269,1.58562765,109040.0,109030.0,0.1400843]
[1748434888474,1.58550765,109040.0,109030.0,0.1400843]
[1748434888675,1.58562765,109040.0,109030.0,0.1400843]
[1748434889178,1.58562765,109040.0,109030.0,0.1705843]
[1748434890772,1.5855466,109040.0,109030.0,0.1705843]
[1748434891769,0.1062799,109040.0,109030.0,0.24551727]
[1748434891973,0.1062799,109040.0,109030.0,0.97584827]
[1748434891974,0.0327,109040.0,109030.0,0.97584827]
[1748434892173,0.2161746,109040.0,109030.0,0.95181189]
[1748434892373,0.2161746,109040.0,109030.0,2.40670579]
[1748434892572,0.2161746,109040.0,109030.0,2.52786539]
[1748434893077,0.2160546,109040.0,109030.0,2.52786539]
[1748434893279,0.2161746,109040.0,109030.0,2.52786539]
[1748434893670,0.1833377,109050.0,109040.0,0.0458364]
[1748434893881,0.2142377,109050.0,109040.0,0.81845232]
[1748434894182,0.2142377,109050.0,109040.0,0.69729272]
[1748434894382,0.2143577,109050.0,109040.0,0.81845232]
[1748434894973,0.2143577,109050.0,109040.0,0.69729272]
[1748434895374,0.2143577,109050.0,109040.0,1.17925232]
[1748434895575,0.2163577,109050.0,109040.0,1.17925232]
[1748434896879,0.2163577,109050.0,109040.0,1.05809272]
[1748434897080,0.2163577,109050.0,109040.0,1.22433124]
[1748434897287,0.2163577,109050.0,109040.0,1.17234949]
[1748434897481,0.03302,109050.0,109040.0,1.22436719]
[1748434897781,0.03302,109050.0,109040.0,1.23704351]
[1748434897985,0.1853377,109050.0,109040.0,1.23704351]
[1748434898177,0.2185577,109050.0,109040.0,1.17927581]
[1748434898378,0.2185577,109050.0,109040.0,2.67927581]
[1748434898775,0.2185577,109050.0,109040.0,2.55811621]
[1748434898985,0.2185577,109050.0,109040.0,2.67927581]
[1748434899689,0.00212,109050.0,109040.0,2.67927581]
[1748434899885,0.1854577,109050.0,109040.0,2.67927581]
[1748434900388,0.002,109050.0,109040.0,3.04547621]
[1748434900580,0.002,109050.0,109040.0,3.28779541]
[1748434900779,0.1854577,109050.0,109040.0,2.99347097]
[1748434901184,0.2185577,109050.0,109040.0,2.99347097]
[1748434901379,0.2185577,109050.0,109040.0,3.04544697]
[1748434901580,0.2185577,109050.0,109040.0,3.16660657]
[1748434901775,0.2185577,109050.0,109040.0,3.15873798]
[1748434901980,0.2185577,109050.0,109040.0,3.223432]
[1748434902381,0.03522,109050.0,109040.0,3.1022724]
[1748434902792,0.2185577,109050.0,109040.0,3.05816499]
[1748434903086,0.03522,109050.0,109040.0,3.17932459]
[1748434903479,0.2185578,109050.0,109040.0,3.223432]
[1748434904189,0.2185578,109050.0,109040.0,3.22178008]
[1748434904389,0.03522,109050.0,109040.0,3.10062048]
[1748434904584,0.03522,109050.0,109040.0,3.22178008]
[1748434904785,0.2185578,109050.0,109040.0,2.37362008]
[1748434904987,0.2185578,109050.0,109040.0,2.81847241]
[1748434905584,0.2185578,109050.0,109040.0,2.93963201]
[1748434905782,0.2185578,109050.0,109040.0,2.81847241]
[1748434905978,0.2184378,109050.0,109040.0,2.81847241]
[1748434906184,0.03522,109050.0,109040.0,2.69731281]
[1748434906491,0.2185578,109050.0,109040.0,2.69731281]
[1748434906686,0.2185578,109050.0,109040.0,2.81847241]
[1748434906884,0.2184378,109050.0,109040.0,2.81847241]
[1748434907189,0.2185578,109050.0,109040.0,1.31847241]
[1748434907594,0.2185578,109050.0,109040.0,2.81847241]
[1748434907790,0.2185578,109050.0,109040.0,3.0996245]
[1748434908092,0.2185578,109050.0,109040.0,3.06167281]
[1748434908297,0.2185578,109050.0,109040.0,3.18283241]
[1748434908792,0.2185578,109050.0,109040.0,2.67923241]
[1748434908983,0.2185578,109050.0,109040.0,3.06143281]
[1748434909189,0.2185578,109050.0,109040.0,3.18259241]
[1748434909601,0.2185578,109050.0,109040.0,3.06143281]
[1748434909896,0.2185578,109050.0,109040.0,3.21279241]
[1748434910198,0.2185577,109050.0,109040.0,3.21279241]
[1748434910590,0.1854577,109050.0,109040.0,3.21279241]
[1748434911096,0.2187577,109050.0,109040.0,3.21279241]
[1748434912493,0.2187577,109050.0,109040.0,3.09163281]
[1748434912687,0.2187577,109050.0,109040.0,3.21279241]
[1748434913100,0.2187577,109050.0,109040.0,3.09163281]
[1748434913398,0.2187577,109050.0,109040.0,3.21279241]
[1748434914290,0.2187577,109050.0,109040.0,3.09163281]
[1748434914496,0.2187577,109050.0,109040.0,3.21279241]
[1748434915105,0.2187577,109050.0,109040.0,3.16083057]
[1748434915599,0.2187577,109050.0,109040.0,3.14566049]
[1748434915805,0.2187577,109050.0,109040.0,3.26682009]
[1748434916189,0.2187577,109050.0,109040.0,2.72216459]
[1748434916389,0.2187577,109050.0,109040.0,3.22316459]
[1748434916797,0.2187577,109050.0,109040.0,3.18316459]
[1748434917297,0.2504577,109050.0,109040.0,3.22446009]
[1748434917485,0.2504577,109050.0,109040.0,3.18316459]
[1748434918305,0.2504577,109050.0,109040.0,3.22446009]
[1748434920107,0.2187577,109050.0,109040.0,3.22446009]
[1748434920494,0.2187577,109050.0,109040.0,3.15976607]
[1748434920803,0.2187577,109050.0,109040.0,3.09910481]
[1748434921004,0.2490577,109050.0,109040.0,3.14494221]
[1748434921408,0.2490577,109050.0,109040.0,3.05436081]
[1748434921800,0.2490577,109050.0,109040.0,1.41522547]
[1748434921998,0.2490577,109050.0,109040.0,1.59856707]
[1748434922205,0.03542,109050.0,109040.0,1.59856707]
[1748434922508,0.2490576,109050.0,109040.0,1.68914847]
[1748434922905,0.2490576,109050.0,109040.0,3.18914847]
[1748434923108,0.2490576,109050.0,109040.0,3.06798887]
[1748434923421,0.2490576,109050.0,109040.0,3.18534847]
[1748434924010,0.2490576,109050.0,109040.0,3.24434847]
[1748434924405,0.23416148,109050.0,109040.0,3.24434847]
[1748434924698,0.23416148,109050.0,109040.0,3.24534847]
[1748434925312,0.23428148,109050.0,109040.0,3.24534847]
[1748434925509,0.20398148,109050.0,109040.0,3.36650807]
[1748434925715,0.23398148,109050.0,109040.0,3.12418887]
[1748434926010,0.23398148,109050.0,109040.0,2.58115147]
[1748434926204,0.59478148,109050.0,109040.0,0.47302879]
[1748434926404,0.71594108,109050.0,109040.0,0.39809582]
[1748434926611,1.35980979,109050.0,109040.0,0.05242835]
[1748434926816,0.1833712,109030.0,109020.0,0.46209521]
[1748434927121,0.5441712,109030.0,109020.0,0.25151379]
[1748434927614,0.6653308,109030.0,109020.0,0.25151379]
[1748434927919,0.6653308,109030.0,109020.0,0.25251379]
[1748434928524,0.6653308,109030.0,109020.0,0.25351379]
[1748434928815,1.0261308,109030.0,109020.0,0.25251379]
[1748434929321,0.9049712,109030.0,109020.0,0.25251379]
[1748434929505,1.0261308,109030.0,109020.0,0.25251379]
[1748434929705,0.9049712,109030.0,109020.0,0.25251379]
[1748434929913,1.0906308,109030.0,109020.0,0.25251379]
[1748434930311,0.9694712,109030.0,109020.0,0.25251379]
[1748434930919,1.6057512,109030.0,109020.0,0.55706139]
[1748434931105,1.6057512,109030.0,109020.0,0.37367339]
[1748434931309,1.6058712,109030.0,109020.0,0.37367339]
[1748434931510,0.9695912,109030.0,109020.0,0.37367339]
[1748434931710,0.2479912,109030.0,109020.0,0.94836139]
[1748434931910,0.2479912,109030.0,109020.0,0.98066139]
[1748434931911,0.2478712,109030.0,109020.0,0.98066139]
[1748434932219,0.2479912,109030.0,109020.0,0.98066139]
[1748434932620,0.2479912,109030.0,109020.0,0.85950179]
[1748434932824,0.2479912,109030.0,109020.0,0.98066139]
[1748434933219,0.2479912,109030.0,109020.0,0.85950179]
[1748434933524,0.2479912,109030.0,109020.0,0.98066139]
[1748434933825,0.2479912,109030.0,109020.0,0.61986139]
[1748434934216,0.2479912,109030.0,109020.0,0.49870179]
[1748434934416,0.2479912,109030.0,109020.0,0.61986139]
[1748434934820,0.2479912,109030.0,109020.0,0.49870179]
[1748434935017,0.2479912,109030.0,109020.0,0.61986139]
[1748434935824,0.2479912,109030.0,109020.0,0.37367339]
[1748434936121,0.6087912,109030.0,109020.0,0.37367339]
[1748434937514,0.6087912,109030.0,109020.0,0.28371379]
[1748434937728,0.6087912,109030.0,109020.0,0.40487339]
[1748434939141,0.6087912,109030.0,109020.0,0.28371379]
[1748434939444,0.6087912,109030.0,109020.0,0.40487339]
[1748434941332,0.6087912,109030.0,109020.0,0.46847339]
[1748434941737,0.6087912,109030.0,109020.0,0.25251379]
[1748434943242,0.6087912,109030.0,109020.0,0.37367339]
[1748434943441,0.6087912,109030.0,109020.0,0.40487339]
[1748434944137,0.6087912,109030.0,109020.0,0.43677339]
[1748434948851,0.6087912,109030.0,109020.0,0.31561379]
[1748434949038,0.6087912,109030.0,109020.0,0.43677339]
[1748434952544,0.6087912,109030.0,109020.0,0.31561379]
[1748434952744,0.6087912,109030.0,109020.0,0.43677339]
[1748434953153,0.00012,109030.0,109020.0,0.55793299]
[1748434953359,0.2595869,109050.0,109040.0,0.1833544]
[1748434953552,0.2595869,109050.0,109040.0,0.85908737]
[1748434953747,0.2137506,109050.0,109040.0,2.42258737]
[1748434953946,0.2137506,109050.0,109040.0,2.47488697]
[1748434954149,0.2138706,109050.0,109040.0,2.59604657]
[1748434954653,0.2138706,109050.0,109040.0,2.41269217]
[1748434954850,0.2138706,109050.0,109040.0,2.29153257]
[1748434955052,0.2467706,109050.0,109040.0,2.59604657]
[1748434955351,0.2467706,109050.0,109040.0,2.41269217]
[1748434955851,0.6085706,109050.0,109040.0,2.05189217]
[1748434956241,0.6085706,109050.0,109040.0,1.93073257]
[1748434956441,0.6075706,109050.0,109040.0,1.93073257]
[1748434956747,0.6085706,109050.0,109040.0,1.93073257]
[1748434957763,0.6085706,109050.0,109040.0,2.05189217]
[1748434959757,0.6085706,109050.0,109040.0,1.93073257]
[1748434959970,0.7297302,109050.0,109040.0,0.3557996]
[1748434960257,1.4124502,109050.0,109040.0,0.24]
[1748434960459,1.45177097,109050.0,109040.0,0.24]
[1748434961258,1.57293057,109050.0,109040.0,0.24]
[1748434961458,1.33061137,109050.0,109040.0,0.24]
[1748434961761,1.57293057,109050.0,109040.0,0.24]
[1748434961954,1.5336098,109050.0,109040.0,0.24]
[1748434962154,1.57305655,109050.0,109040.0,0.24]
[1748434962657,1.45189695,109050.0,109040.0,0.24]
[1748434964754,1.33073735,109050.0,109040.0,0.24]
[1748434964960,1.45189695,109050.0,109040.0,0.24]
[1748434965161,1.33073735,109050.0,109040.0,0.24]
[1748434965359,1.45189695,109050.0,109040.0,0.24]
[1748434966254,1.4124502,109050.0,109040.0,0.24]
[1748434966450,1.45179735,109050.0,109040.0,0.24]
[1748434967460,1.45179754,109050.0,109040.0,0.24]
[1748434969950,1.49465948,109050.0,109040.0,0.24]
[1748434970552,1.49391997,109050.0,109040.0,0.24]
[1748434970753,1.61507957,109050.0,109040.0,0.24]
[1748434970959,1.37276037,109050.0,109040.0,0.24]
[1748434971158,0.1833544,109040.0,109020.0,0.4807755]
[1748434971359,0.1834048,109010.0,109000.0,0.1475996]
[1748434971568,0.1834217,109000.0,108990.0,0.0522996]
[1748434971755,0.1834385,108990.0,108980.0,0.21783607]
[1748434971954,0.22032654,108990.0,108980.0,0.86591926]
[1748434972150,0.5765335,109000.0,108990.0,0.1834385]
[1748434972151,0.1834294,109000.0,108990.0,0.1834385]
[1748434972457,0.18103538,109000.0,108990.0,1.140458]
[1748434972858,0.18115538,109000.0,108990.0,1.143458]
[1748434973162,0.00012,109000.0,108990.0,1.143458]
[1748434973355,0.1834217,109000.0,108990.0,1.145458]
[1748434973757,0.1835417,109000.0,108990.0,1.145458]
[1748434974360,0.00013818,109010.0,108990.0,1.7857271]
[1748434974561,0.00013818,109010.0,109000.0,0.92607387]
[1748434974767,0.18354298,109010.0,109000.0,1.24109591]
[1748434975055,0.00025818,109010.0,109000.0,1.15265778]
[1748434975262,0.00025818,109010.0,109000.0,1.18355778]
[1748434975456,0.00025818,109010.0,109000.0,1.06239818]
[1748434975659,0.00025818,109010.0,109000.0,1.18355778]
[1748434975957,0.18366298,109010.0,109000.0,1.06239818]
[1748434976158,0.00025818,109010.0,109000.0,0.99904869]
[1748434976558,0.18366298,109010.0,109000.0,1.00004869]
[1748434976968,0.18366298,109010.0,109000.0,1.12120829]
[1748434977362,0.18366298,109010.0,109000.0,1.00004869]
[1748434977567,0.18366298,109010.0,109000.0,1.12120829]
[1748434978059,0.18366298,109010.0,109000.0,1.00004869]
[1748434978456,0.18366298,109010.0,109000.0,1.12120829]
[1748434978660,0.18366298,109010.0,109000.0,1.04627532]
[1748434978864,0.18366298,109010.0,109000.0,1.12120829]
[1748434979565,0.00025818,109010.0,109000.0,1.10004869]
[1748434979872,0.2750881,109020.0,109010.0,0.1834048]
[1748434980171,0.2750881,109020.0,109010.0,2.52078]
[1748434980374,0.2750881,109020.0,109010.0,2.6430689]
[1748434980662,0.2750881,109020.0,109010.0,2.64433362]
[1748434981567,0.3078745,109030.0,109020.0,0.183388]
[1748434981867,0.3078745,109030.0,109020.0,1.1593282]
[1748434982069,0.3078745,109030.0,109020.0,1.16172222]
[1748434982770,0.3108745,109030.0,109020.0,1.16172222]
[1748434983269,0.3098745,109030.0,109020.0,1.04056262]
[1748434983473,0.3098745,109030.0,109020.0,1.16172222]
[1748434984361,1.1401352,109050.0,109020.0,1.16172222]
[1748434984362,0.2621824,109050.0,109040.0,0.1833399]
[1748434984564,0.2621824,109050.0,109040.0,0.87088556]
[1748434984765,0.2621824,109050.0,109040.0,1.02851272]
[1748434984957,0.2623024,109050.0,109040.0,1.14967232]
[1748434985569,0.2623024,109050.0,109040.0,2.64967232]
[1748434986070,0.2623024,109050.0,109040.0,2.52851272]
[1748434986570,0.2623024,109050.0,109040.0,2.46631792]
[1748434986861,0.2623024,109050.0,109040.0,2.52851272]
[1748434987370,0.2623024,109050.0,109040.0,2.64967232]
[1748434988364,0.2623024,109050.0,109040.0,2.52851272]
[1748434988754,0.2623024,109050.0,109040.0,2.64967232]
[1748434988963,0.2623024,109050.0,109040.0,2.52851272]
[1748434989268,0.2623024,109050.0,109040.0,2.64967232]
[1748434990069,0.2623024,109050.0,109040.0,2.34515832]
[1748434990368,0.2623024,109050.0,109040.0,0.79292699]
[1748434990666,0.2941024,109050.0,109040.0,0.91408659]
[1748434990868,0.2941024,109050.0,109040.0,2.29292699]
[1748434991866,0.2941024,109050.0,109040.0,2.41408659]
[1748434992360,0.2941024,109050.0,109040.0,2.29292699]
[1748434992560,0.2941024,109050.0,109040.0,2.41408659]
[1748434992764,0.2941024,109050.0,109040.0,2.45322447]
[1748434993860,0.2941024,109050.0,109040.0,2.33206487]
[1748434994062,0.2941024,109050.0,109040.0,2.63657887]
[1748434994362,0.2941024,109050.0,109040.0,2.41408659]
[1748434994964,0.2941024,109050.0,109040.0,2.29292699]
[1748434995163,0.2941024,109050.0,109040.0,2.52250812]
[1748434995365,0.2941024,109050.0,109040.0,2.59744109]
[1748434995965,0.2623024,109050.0,109040.0,2.41408659]
[1748434996175,0.2623024,109050.0,109040.0,2.29292699]
[1748434996380,0.2623024,109050.0,109040.0,2.34515832]
[1748434996673,0.2924024,109050.0,109040.0,2.46631792]
[1748434997574,0.2924024,109050.0,109040.0,2.64967232]
[1748434998173,0.2924024,109050.0,109040.0,2.46631792]
[1748434998370,0.2924024,109050.0,109040.0,2.34515832]
[1748434999368,0.2924024,109050.0,109040.0,2.52851272]
[1748434999572,0.2924024,109050.0,109040.0,2.64967232]
[1748434999773,0.2924024,109050.0,109040.0,2.52851272]
[1748434999967,0.2924024,109050.0,109040.0,2.64967232]
[1748435000569,0.2924024,109050.0,109040.0,2.34515832]
[1748435001169,0.2924024,109050.0,109040.0,2.52851282]
[1748435001574,0.2924024,109050.0,109040.0,2.34515832]
[1748435001881,0.2924024,109050.0,109040.0,2.46631792]
[1748435002783,0.2924024,109050.0,109040.0,2.34515832]
[1748435004976,0.2924024,109050.0,109040.0,2.46631792]
[1748435005486,0.2924024,109050.0,109040.0,2.46871194]
[1748435006384,0.2924024,109050.0,109040.0,2.5137613]
[1748435006586,0.2924024,109050.0,109040.0,2.46871194]
[1748435006783,0.2924024,109050.0,109040.0,0.96871194]
[1748435006983,0.2924024,109050.0,109040.0,0.84755234]
[1748435007179,0.2924024,109050.0,109040.0,0.96871194]
[1748435007482,0.2924024,109050.0,109040.0,1.15206634]
[1748435007880,0.2924024,109050.0,109040.0,1.19869549]
[1748435008677,0.2924024,109050.0,109040.0,1.07753589]
[1748435008880,0.2924024,109050.0,109040.0,1.19870858]
[1748435009183,0.2924024,109050.0,109040.0,1.14649137]
[1748435009382,0.2924024,109050.0,109040.0,1.21181322]
[1748435010076,0.2623024,109050.0,109040.0,1.21181322]
[1748435010275,0.2621824,109050.0,109040.0,1.21181322]
[1748435010793,0.2621824,109050.0,109040.0,1.21281437]
[1748435011081,0.2623024,109050.0,109040.0,1.21281437]
[1748435012085,0.2623024,109050.0,109040.0,1.09165477]
[1748435012285,0.2623024,109050.0,109040.0,1.21281437]
[1748435012686,0.2623024,109050.0,109040.0,2.71281437]
[1748435013485,0.2623024,109050.0,109040.0,2.82887213]
[1748435014393,0.2623024,109050.0,109040.0,2.85413168]
[1748435014679,0.2623024,109050.0,109040.0,2.79843516]
[1748435014885,0.2623024,109050.0,109040.0,2.7129556]
[1748435015087,0.2623024,109050.0,109040.0,2.44819459]
[1748435015486,0.2623024,109050.0,109040.0,2.56935419]
[1748435015886,0.2623024,109050.0,109040.0,2.61352547]
[1748435016082,0.2623024,109050.0,109040.0,2.06937107]
[1748435016287,0.2623024,109050.0,109040.0,2.43017107]
[1748435016487,0.2937024,109050.0,109040.0,2.43017107]
[1748435016683,0.2937024,109050.0,109040.0,2.26135396]
[1748435016891,0.2937024,109050.0,109040.0,0.76135396]
[1748435018691,0.2937024,109050.0,109040.0,0.76136644]
[1748435019286,0.2937024,109050.0,109040.0,0.40056644]
[1748435019483,0.2937024,109050.0,109040.0,0.52172604]
[1748435019882,0.2937024,109050.0,109040.0,0.40056644]
[1748435020083,0.2937024,109050.0,109040.0,0.45087885]
[1748435020584,0.2937024,109050.0,109040.0,0.55548339]
[1748435021389,0.414862,109050.0,109040.0,0.55548339]